fUSD/lending_fUSD_20240224
["ID","MTS","AMOUNT","RATE_DAILY","PERIOD"]
[315064991,1708801834342,-300.0,0.00026497,2]
[315064992,1708801834351,-300.0,0.00026497,2]
[315064993,1708801834361,-5000.0,0.000265,2]
[315064994,1708801834371,-60593.61226487,0.000265,2]
[315064995,1708801834381,-186.0140294,0.000265,2]
[315064996,1708801834391,-1687.12445778,0.000265,2]
[315064997,1708801834400,-4992.75529919,0.000265,2]
[315064998,1708801834409,-350.1510994,0.000265,2]
[315064999,1708801834419,-203.87144494,0.000265,2]
[315065000,1708801834429,-1141.81577176,0.000265,2]
[315065001,1708801834438,-337.92693648,0.000265,2]
[315065002,1708801834448,-636.17,0.00026542,2]
[315065003,1708801834457,-156.12,0.00026549,2]
[315065004,1708801834467,-186.01402936,0.0002657,2]
[315065005,1708801834477,-300.0,0.0002658,2]
[315065006,1708801834487,-228853.0215,0.00026581,2]
[315065007,1708801834496,-1697.7209,0.00026581,2]
[315065008,1708801834506,-200.0,0.00026596,2]
[315065009,1708801834516,-375.49674524,0.00026596,2]
[315065010,1708801835331,-424.50325476,0.00026596,2]
[315065011,1708801835341,-200.0,0.00026596,2]
[315065012,1708801835352,-200.0,0.00026596,2]
[315065013,1708801835361,-500.0,0.00026599,2]
[315065014,1708801835371,-500.0,0.00026599,2]
[315065015,1708801835381,-500.0,0.00026599,2]
[315065016,1708801835391,-432.16915652,0.00026599,2]
[315065017,1708801835413,-28573.76980053,0.000266,4]
[315065024,1708801837982,-1081.652,0.000266,2]
[315065026,1708801838044,-584.11310522,0.000266,2]
[315065027,1708801838053,-414.55695639,0.000266,4]
[315065028,1708801838069,-518.38607866,0.000266,4]
[315065029,1708801838081,-314.71521952,0.000266,4]
[315065030,1708801838109,-1680.10935566,0.000266,4]
[315065252,1708801840391,-5495.0,0.000266,4]
[315065268,1708801840530,-264785.09207963,0.000266,4]
[315065271,1708801840559,-845611.31762871,0.000266,4]
[315065272,1708801840568,-477279.177142,0.000266,4]
[315065273,1708801840578,-150.0,0.000266,2]
[315065274,1708801840587,-151.0,0.000266,3]
[315065275,1708801840597,-151.0,0.000266,2]
[315065276,1708801840606,-151.0,0.000266,2]
[315065277,1708801840616,-151.0,0.000266,3]
[315065278,1708801840625,-151.0,0.000266,7]
[315065279,1708801840635,-1525.039293,0.000266,2]
[315065280,1708801840644,-485.775006,0.000266,2]
[315065282,1708801840654,-485.775006,0.000266,2]
[315065283,1708801840665,-151.0,0.000266,7]
[315065285,1708801840675,-150.0,0.00026604,2]
[315065287,1708801840684,-4992.75529911,0.00026618,2]
[315065289,1708801840693,-186.01402936,0.0002664,2]
[315065291,1708801840702,-398.04299761,0.00026673,3]
[315065293,1708801840713,-4095.2881892,0.00026678,2]
[315065295,1708801840722,-300.0,0.0002668,2]
[315065297,1708801840731,-107248.5568524,0.0002668,2]
[315065299,1708801840743,-162.49960027,0.00026688,2]
[315065301,1708801840753,-3050.66433996,0.00026688,2]
[315065303,1708801840763,-2095.11000002,0.00026689,2]
[315065305,1708801840772,-300.0,0.00026689,2]
[315065307,1708801840782,-102631.52067645,0.0002669,2]
[315065309,1708801840792,-151.0,0.0002669,3]
[315065311,1708801840801,-151.0,0.0002669,2]
[315065313,1708801840811,-151.0,0.0002669,2]
[315065315,1708801840820,-202.90903464,0.00026698,12]
[315065317,1708801840828,-150.00000009,0.000267,2]
[315065319,1708801840837,-150.0,0.00026702,2]
[315065321,1708801840847,-150.0,0.00026704,2]
[315065323,1708801840856,-156.12,0.00026704,2]
[315065325,1708801840866,-156.17,0.00026709,2]
[315065327,1708801840875,-186.01402936,0.0002671,2]
[315065329,1708801840884,-150.0,0.00026713,2]
[315065331,1708801840894,-150.0,0.00026715,2]
[315065333,1708801840903,-150.0,0.00026717,2]
[315065335,1708801840912,-150.0,0.00026721,2]
[315065337,1708801840921,-150.0,0.00026723,2]
[315065339,1708801840930,-150.0,0.00026723,2]
[315065341,1708801840940,-150.0,0.00026726,2]
[315065343,1708801840949,-150.0,0.00026728,2]
[315065345,1708801840958,-150.0,0.00026729,2]
[315065347,1708801840970,-150.0,0.00026731,2]
[315065349,1708801840979,-150.0,0.00026732,2]
[315065351,1708801840988,-150.0,0.00026735,2]
[315065353,1708801840997,-150.0,0.00026736,2]
[315065355,1708801841007,-4992.75529911,0.00026736,2]
[315065357,1708801841016,-150.0,0.0002674,2]
[315065359,1708801841025,-150.0,0.00026751,2]
[315065361,1708801841034,-150.0,0.00026751,2]
[315065363,1708801841043,-150.0,0.00026754,2]
[315065365,1708801841052,-150.0,0.00026754,2]
[315065367,1708801841062,-274.93239672,0.00026755,2]
[315065369,1708801841071,-150.0,0.00026755,2]
[315065371,1708801841080,-150.0,0.00026757,2]
[315065373,1708801841089,-150.0,0.00026758,2]
[315065375,1708801841098,-150.0,0.00026761,2]
[315065377,1708801841107,-150.0,0.00026762,2]
[315065379,1708801841116,-150.0,0.00026766,2]
[315065381,1708801841125,-150.0,0.00026769,2]
[315065383,1708801841134,-150.0,0.00026772,2]
[315065385,1708801841143,-150.0,0.00026773,2]
[315065387,1708801841153,-150.0,0.00026775,2]
[315065389,1708801841163,-855.20075258,0.00026779,2]
[315065391,1708801841172,-186.01402936,0.0002678,2]
[315065393,1708801841181,-150.0,0.00026784,2]
[315065396,1708801841191,-1500.0,0.00026785,2]
[315065398,1708801841200,-150.0,0.00026786,2]
[315065400,1708801841211,-150.0,0.00026789,2]
[315065402,1708801841220,-1500.0,0.0002679,2]
[315065404,1708801841229,-150.0,0.00026793,2]
[315065406,1708801841238,-3112.850256,0.00026794,2]
[315065408,1708801841247,-4669.275385,0.00026794,2]
[315065410,1708801841256,-1000.0,0.00026796,2]
[315065412,1708801841266,-1000.0,0.00026796,2]
[315065414,1708801841275,-1000.0,0.00026796,2]
[315065416,1708801841284,-1000.0,0.00026796,2]
[315065418,1708801841294,-1000.0,0.00026796,2]
[315065420,1708801841304,-1000.0,0.00026796,2]
[315065422,1708801841313,-1000.0,0.00026796,2]
[315065424,1708801841323,-1000.0,0.00026796,2]
[315065425,1708801841332,-1000.0,0.00026796,2]
[315065427,1708801841342,-1000.0,0.00026796,2]
[315065429,1708801841351,-1000.0,0.00026796,2]
[315065431,1708801841361,-1000.0,0.00026796,2]
[315065433,1708801841371,-1000.0,0.00026796,2]
[315065435,1708801841381,-1000.0,0.00026796,2]
[315065437,1708801841390,-1000.0,0.00026796,2]
[315065439,1708801841399,-1000.0,0.00026796,2]
[315065442,1708801841409,-1000.0,0.00026796,2]
[315065444,1708801841420,-1000.0,0.00026796,2]
[315065446,1708801841429,-1000.0,0.00026796,2]
[315065448,1708801841438,-1000.0,0.00026796,2]
[315065450,1708801841448,-1000.0,0.00026796,2]
[315065452,1708801841457,-1000.0,0.00026796,2]
[315065454,1708801841467,-672.6403,0.00026796,2]
[315065456,1708801841477,-500.0,0.00026796,2]
[315065458,1708801841486,-500.0,0.00026796,2]
[315065460,1708801841496,-518.3736,0.00026796,2]
[315065462,1708801841505,-300.0,0.00026797,2]
[315065464,1708801841515,-300.0,0.00026797,2]
[315065466,1708801841525,-151.0,0.00026798,3]
[315065468,1708801841534,-151.0,0.00026798,2]
[315065470,1708801841544,-151.0,0.00026798,2]
[315065472,1708801841553,-151.0,0.00026798,3]
[315065474,1708801841563,-86401.6635607,0.00026798,2]
[315065476,1708801841572,-14165.78625111,0.00026798,2]
[315065568,1708801842747,-150.0,0.00026066,2]
[315065570,1708801842757,-3828.97257582,0.00026798,2]
[315065572,1708801842769,-2987.15765174,0.00026798,2]
[315065573,1708801842780,-1052.0493675,0.00026798,2]
[315065574,1708801842792,-1774.95309013,0.00026798,2]
[315065575,1708801842818,-302.0,0.00026798,2]
[315065576,1708801842921,-4045.38426351,0.00026798,2]
[315065577,1708801842985,-3281.39899777,0.00026798,2]
[315065578,1708801842996,-44532.45964507,0.00026798,2]
[315065579,1708801843033,-412.74691942,0.00026798,2]
[315065580,1708801843045,-2317.74075829,0.00026798,2]
[315065581,1708801843057,-2123.06644978,0.00026798,2]
[315065638,1708801846238,-162.49960026,0.00026688,2]
[315065641,1708801846252,-224.62985022,0.00026688,2]
[315065644,1708801846263,-1300.70231976,0.00026688,2]
[315065647,1708801846273,-2069.09905446,0.0002678,2]
[315065650,1708801846283,-5577.94759047,0.00026798,2]
[315065652,1708801846293,-1927.32286337,0.00026798,2]
[315065655,1708801846305,-21324.57834164,0.00026798,2]
[315065657,1708801846321,-340.84328745,0.00026798,2]
[315065659,1708801846354,-4951.77851246,0.00026798,2]
[315065660,1708801846366,-33695.65570962,0.00026798,2]
[315065661,1708801846378,-3142.57235427,0.00026798,2]
[315065662,1708801846475,-6779.16468965,0.00026798,2]
[315065663,1708801846488,-718.766,0.00026798,2]
[315065664,1708801846504,-673.38761957,0.00026798,2]
[315065665,1708801846516,-12847.59418258,0.00026798,2]
[315065666,1708801846525,-86401.66356061,0.00026798,2]
[315065667,1708801846535,-18529.62895909,0.00026798,2]
[315065668,1708801846544,-18529.62895901,0.00026798,2]
[315065669,1708801846554,-18529.62895901,0.00026798,2]
[315065670,1708801846563,-18529.62895901,0.00026798,2]
[315065671,1708801846573,-18529.62895901,0.00026798,2]
[315065672,1708801846582,-485.775006,0.00026798,2]
[315065673,1708801846592,-485.775006,0.00026798,2]
[315065674,1708801846602,-485.775006,0.00026798,2]
[315065675,1708801846612,-485.775006,0.00026798,2]
[315065676,1708801846622,-151.0,0.00026798,7]
[315065677,1708801846632,-156.824607,0.00026798,7]
[315065678,1708801846642,-150.0,0.000268,2]
[315065679,1708801846652,-150.0,0.000268,2]
[315065680,1708801846665,-347.0,0.000268,2]
[315065681,1708801846676,-1000.0,0.000268,2]
[315065682,1708801846685,-909.0,0.000268,2]
[315065683,1708801846694,-150.0,0.00026803,2]
[315065684,1708801846703,-150.0,0.00026808,2]
[315065685,1708801846712,-150.0,0.00026808,2]
[315065686,1708801846724,-150.0,0.00026809,2]
[315065687,1708801846733,-150.0,0.0002681,2]
[315065688,1708801846743,-150.0,0.00026813,2]
[315065689,1708801846753,-150.0,0.00026813,2]
[315065690,1708801846762,-1500.0,0.00026815,2]
[315065691,1708801846772,-150.0,0.00026815,2]
[315065692,1708801846782,-162.72309137,0.00026817,2]
[315065693,1708801846791,-158.4,0.00026823,2]
[315065694,1708801846800,-150.0,0.00026825,2]
[315065695,1708801846809,-150.0,0.00026826,2]
[315065696,1708801846818,-150.0,0.00026829,2]
[315065697,1708801846828,-150.0,0.00026831,2]
[315065698,1708801846837,-150.0,0.00026832,2]
[315065699,1708801846847,-150.0,0.00026845,2]
[315065700,1708801846856,-150.0,0.00026849,2]
[315065701,1708801846865,-150.0,0.00026849,2]
[315065702,1708801846875,-150.0,0.00026849,2]
[315065703,1708801846884,-4992.75529911,0.00026855,2]
[315065704,1708801846893,-150.0,0.00026857,2]
[315065705,1708801846902,-150.0,0.00026858,2]
[315065706,1708801846911,-156.12,0.00026859,2]
[315065707,1708801846921,-150.0,0.00026862,2]
[315065708,1708801846930,-4288.2876862,0.00026862,2]
[315065709,1708801846939,-273.7282159,0.00026862,2]
[315065710,1708801846956,-9314.8369213,0.00026862,2]
[315065711,1708801847000,-3107.42475,0.00026862,2]
[315065712,1708801847011,-1319.35642755,0.00026862,2]
[315065713,1708801847046,-644.8206562,0.00026862,2]
[315065714,1708801847057,-1697.34175456,0.00026862,2]
[315065715,1708801847069,-310.0765343,0.00026862,2]
[315065716,1708801864005,204.0,0.00021558,2]
[315065717,1708802124201,151.0,0.00028943,120]
[315065719,1708802184730,33118.0,0.00027,14]
[315065724,1708802578496,1670.0,0.00025,10]
[315065727,1708802743556,151.0,0.00029005,120]
[315065728,1708802805516,432.55,0.00022356,2]
[315065818,1708803031987,-2139.2738,0.0002272,2]
[315065819,1708803031997,-150.0,0.00022798,2]
[315065820,1708803032009,-2634.30958985,0.00022799,2]
[315065821,1708803032020,-278.66008818,0.00022799,2]
[315065822,1708803032032,-1168.93293316,0.00022799,2]
[315065823,1708803032094,-39357.01547031,0.00022799,2]
[315065824,1708803032104,-158.64307415,0.00022799,2]
[315065825,1708803032113,-1647.43389853,0.00022889,2]
[315065826,1708803032122,-1000.0,0.00022999,2]
[315065827,1708803032131,-2297.0,0.00023008,2]
[315065828,1708803032141,-158.64307407,0.00023083,2]
[315065829,1708803032150,-158.64307407,0.00023368,2]
[315065830,1708803032160,-158.64307407,0.00023652,2]
[315065831,1708803032169,-200.0,0.00023905,2]
[315065832,1708803032179,-158.64307407,0.00023936,2]
[315065833,1708803032187,-499.99,0.00023936,2]
[315065834,1708803032196,-27188.39,0.00023936,2]
[315065835,1708803032206,-2000.0,0.00024064,2]
[315065836,1708803032215,-157.26,0.00024088,2]
[315065837,1708803032224,-278.66,0.00024098,2]
[315065838,1708803032233,-158.64307407,0.00024221,2]
[315065839,1708803032242,-1098.3,0.00024245,2]
[315065840,1708803032251,-210.16,0.00024256,2]
[315065841,1708803032260,-310.1608129,0.00024262,2]
[315065842,1708803032269,-188.0,0.00024269,2]
[315065843,1708803032279,-250.0,0.00024298,2]
[315065844,1708803032288,-500.0,0.00024314,2]
[315065845,1708803032298,-9994.49,0.00024331,2]
[315065846,1708803032307,-164.58,0.00024333,2]
[315065847,1708803032317,-188.0,0.00024335,2]
[315065849,1708803032325,-17250.98,0.00024342,2]
[315065851,1708803032334,-328.67,0.00024362,2]
[315065853,1708803032343,-188.0,0.00024402,2]
[315065855,1708803032352,-3950.33,0.00024447,2]
[315065857,1708803032361,-188.0,0.00024468,2]
[315065859,1708803032370,-158.64307407,0.00024505,2]
[315065861,1708803032379,-188.0,0.00024535,2]
[315065863,1708803032388,-188.0,0.00024601,2]
[315065865,1708803032397,-432.55,0.0002462,2]
[315065867,1708803032406,-250.0,0.00024658,2]
[315065868,1708803032415,-250.0,0.00024658,2]
[315065870,1708803032424,-3108.17,0.0002466,2]
[315065872,1708803032433,-188.0,0.00024668,2]
[315065874,1708803032442,-786.76118548,0.000247,2]
[315065876,1708803032452,-188.0,0.00024734,2]
[315065878,1708803032461,-508.6,0.00024783,2]
[315065881,1708803032470,-158.64307407,0.0002479,2]
[315065882,1708803032481,-1000.0,0.00024793,2]
[315065884,1708803032491,-1156.03214868,0.00024799,2]
[315065886,1708803032500,-188.0,0.00024801,2]
[315065888,1708803032509,-154.56,0.00024835,2]
[315065890,1708803032519,-188.0,0.00024868,2]
[315065892,1708803032529,-188.0,0.00024934,2]
[315065895,1708803032539,-1000.0,0.0002495,2]
[315065896,1708803032548,-188.0,0.00025001,2]
[315065898,1708803032557,-188.0,0.00025067,2]
[315065900,1708803032567,-158.64307407,0.00025074,2]
[315065903,1708803032577,-947.6047,0.000251,2]
[315065904,1708803032586,-188.0,0.00025134,2]
[315065907,1708803032596,-188.0,0.000252,2]
[315065909,1708803032606,-188.0,0.00025267,2]
[315065911,1708803032615,-188.0,0.00025333,2]
[315065913,1708803032624,-253.2449,0.00025341,2]
[315065914,1708803032634,-158.64307407,0.00025358,2]
[315065916,1708803032643,-188.0,0.000254,2]
[315065919,1708803032653,-188.0,0.00025466,2]
[315065921,1708803032662,-310.16081289,0.00025471,2]
[315065923,1708803032672,-206.36,0.000255,2]
[315065925,1708803032681,-188.0,0.00025533,2]
[315065927,1708803032691,-1697.7209,0.00025616,2]
[315065929,1708803032700,-158.64307407,0.00025643,2]
[315065931,1708803032710,-160.28,0.00025684,2]
[315065933,1708803032721,-150.0,0.0002588,2]
[315065964,1708803033002,-1098.3,0.00025888,2]
[315065966,1708803033021,-158.64307407,0.00025927,2]
[315065968,1708803033030,-1453.0,0.00026,2]
[315065970,1708803033040,-14555.04,0.00026,2]
[315065972,1708803033049,-150.0,0.00026079,2]
[315065974,1708803033058,-413.13,0.00026164,2]
[315065976,1708803033067,-732.58,0.00026164,2]
[315065978,1708803033076,-423.89,0.00026164,2]
[315065980,1708803033085,-826.01,0.00026165,2]
[315065982,1708803033096,-158.64307407,0.00026211,2]
[315065984,1708803033105,-636.18,0.00026246,2]
[315065986,1708803033115,-3108.17,0.000263,2]
[315065989,1708803033124,-1230.6163857,0.00026312,2]
[315065991,1708803033136,-1121.4887,0.00026391,2]
[315065993,1708803033145,-268.49636832,0.00026391,3]
[315065994,1708803033154,-17928.09,0.00026398,5]
[315065996,1708803033163,-4731.22393785,0.00026398,5]
[315066001,1708803033194,-484.28691844,0.00026398,5]
[315066008,1708803033301,-293.18914371,0.00026398,5]
[315066009,1708803033310,-37102.44,0.00026398,5]
[315066010,1708803033320,-1334.99235529,0.00026442,2]
[315066011,1708803033329,-3169.10083737,0.00026491,2]
[315066012,1708803033339,-7043.58645966,0.00026491,2]
[315066013,1708803033348,-38313.71115706,0.00026491,2]
[315066014,1708803033360,-11686.28884294,0.00026491,2]
[315066015,1708803033370,-674.22853758,0.00026491,2]
[315066016,1708803033379,-22755.08855109,0.00026491,2]
[315066017,1708803033389,-30463.16986748,0.00026491,2]
[315066018,1708803033412,-6616.61360832,0.00026491,2]
[315066019,1708803033424,-450.0,0.00026491,2]
[315066029,1708803037993,-206.0,0.00024547,2]
[315066030,1708803038002,-223.75734304,0.00026,2]
[315066031,1708803038115,-307.24265696,0.00026,2]
[315066032,1708803038125,-12470.2165242,0.00026491,2]
[315066033,1708803038135,-158.64307407,0.00026496,2]
[315066034,1708803038144,-157.26,0.00026497,2]
[315066035,1708803038153,-160.28,0.0002654,2]
[315066036,1708803038162,-200.0,0.00026561,2]
[315066037,1708803038171,-800.0,0.00026561,2]
[315066038,1708803038183,-200.0,0.00026561,2]
[315066039,1708803038192,-268.49636829,0.00026592,3]
[315066040,1708803038202,-300.0,0.00026609,2]
[315066041,1708803038211,-300.0,0.00026609,2]
[315066043,1708803038220,-274.18652657,0.00026609,2]
[315066045,1708803038229,-310.16081289,0.0002668,2]
[315066047,1708803038238,-786.76118548,0.00026698,2]
[315066049,1708803038247,-193.97248023,0.000267,2]
[315066051,1708803038256,-203.87144494,0.000267,2]
[315066053,1708803038265,-337.92693648,0.000267,2]
[315066055,1708803038274,-5274.1619234,0.000267,2]
[315066057,1708803038284,-350.1510994,0.000267,2]
[315066059,1708803038293,-185.98336822,0.000267,2]
[315066061,1708803038302,-1141.81577176,0.000267,2]
[315066063,1708803038311,-150.0,0.00026717,2]
[315066066,1708803038321,-1201.27576752,0.00026718,2]
[315066069,1708803038346,-29.34061818,0.00026718,2]
[315066071,1708803038355,-150.0,0.00026726,2]
[315066073,1708803038365,-150.0,0.00026727,2]
[315066075,1708803038374,-150.0,0.00026732,2]
[315066077,1708803038384,-150.0,0.00026732,2]
[315066080,1708803038394,-150.0,0.00026734,2]
[315066082,1708803038404,-193.97248023,0.0002674,2]
[315066084,1708803038414,-170.39383459,0.00026742,2]
[315066086,1708803038427,-1329.60616541,0.00026742,2]
[315066088,1708803038436,-150.0,0.00026743,2]
[315066090,1708803038446,-489.8005,0.00026751,2]
[315066092,1708803038455,-150.0,0.00026752,2]
[315066094,1708803038465,-150.0,0.00026753,2]
[315066096,1708803038475,-150.0,0.00026765,2]
[315066098,1708803038485,-150.0,0.00026777,2]
[315066100,1708803038494,-1334.99235529,0.00026778,2]
[315066102,1708803038503,-864.89389303,0.0002678,2]
[315066307,1708803040510,-389.23658744,0.00025754,2]
[315066421,1708803041568,-841.82341256,0.00025754,2]
[315066423,1708803041577,-10818.61323486,0.00026491,2]
[315066425,1708803041585,-4135.10610697,0.0002678,2]
[315066427,1708803041594,-38985.9552,0.0002678,2]
[315066429,1708803041604,-158.64307407,0.0002678,2]
[315066431,1708803041613,-193.97248023,0.0002678,2]
[315066433,1708803041621,-162.32722772,0.0002678,12]
[315066435,1708803041630,-150.0,0.00026782,2]
[315066437,1708803041640,-150.79616061,0.00026784,2]
[315066439,1708803041649,-178.33759153,0.00026788,2]
[315066441,1708803041657,-268.49636829,0.00026794,3]
[315066443,1708803041666,-53611.97330773,0.00026798,2]
[315066445,1708803041675,-53611.97330766,0.00026798,2]
[315066447,1708803041684,-53611.97330766,0.00026798,2]
[315066449,1708803041693,-53611.97330766,0.00026798,2]
[315066451,1708803041702,-53611.97330766,0.00026798,2]
[315066453,1708803041710,-9264.81447955,0.00026798,2]
[315066455,1708803041719,-9264.8144795,0.00026798,2]
[315066457,1708803041728,-9264.8144795,0.00026798,2]
[315066458,1708803041737,-9264.8144795,0.00026798,2]
[315066460,1708803041746,-214.68546184,0.00026799,2]
[315066462,1708803041755,-874460.03743973,0.00026799,4]
[315066464,1708803041764,-619631.8326933,0.000268,3]
[315066467,1708803041774,-3664.144386,0.000268,7]
[315066469,1708803041782,-3664.144386,0.000268,7]
[315066470,1708803041791,-340.042504,0.000268,2]
[315066473,1708803041800,-340.042504,0.000268,2]
[315066475,1708803041809,-1500.0,0.00026802,2]
[315066477,1708803041818,-150.0,0.00026804,2]
[315066479,1708803041827,-150.0,0.00026809,2]
[315066481,1708803041837,-150.0,0.00026814,2]
[315066483,1708803041845,-150.0,0.00026815,2]
[315066484,1708803041854,-150.0,0.0002682,2]
[315066485,1708803041863,-1500.0,0.00026831,2]
[315066486,1708803041871,-150.0,0.00026835,2]
[315066487,1708803041880,-150.0,0.00026837,2]
[315066488,1708803041889,-150.0,0.00026842,2]
[315066489,1708803041898,-150.0,0.0002685,2]
[315066490,1708803041907,-5965.3913507,0.00026852,2]
[315066491,1708803041916,-167655.8683878,0.00026852,2]
[315066492,1708803041925,-12221.7139029,0.00026852,2]
[315066493,1708803041933,-153.81336378,0.00026855,2]
[315066494,1708803041942,-150.0,0.00026858,2]
[315066495,1708803041952,-150.0,0.00026859,2]
[315066496,1708803041962,-5525.38695485,0.0002686,2]
[315066497,1708803041971,-155.0,0.0002686,2]
[315066498,1708803041980,-762.66608499,0.00026861,2]
[315066499,1708803041989,-4851.4445248,0.00026862,2]
[315066500,1708803041998,-140544.8777318,0.00026862,2]
[315066501,1708803042008,-3664.144386,0.00026862,7]
[315066502,1708803042019,-3664.144386,0.00026862,7]
[315066503,1708803042028,-340.042504,0.00026862,2]
[315066504,1708803042037,-340.042504,0.00026862,2]
[315066505,1708803042046,-10247.8182064,0.00026862,2]
[315066506,1708803042055,-1500.0,0.0002687,2]
[315066507,1708803042064,-150.0,0.00026872,2]
[315066508,1708803042073,-150.0,0.00026876,2]
[315066509,1708803042082,-3242.843135,0.00026878,2]
[315066510,1708803042091,-500.0,0.00026879,2]
[315066511,1708803042101,-500.0,0.00026879,2]
[315066512,1708803042111,-500.0,0.00026879,2]
[315066513,1708803042120,-500.0,0.00026879,2]
[315066514,1708803042129,-500.0,0.00026879,2]
[315066515,1708803042137,-253.45416768,0.00026879,2]
[315066516,1708803042146,-500.0,0.00026879,2]
[315066517,1708803042155,-500.0,0.00026879,2]
[315066518,1708803042165,-500.0,0.00026879,2]
[315066519,1708803042174,-500.0,0.00026879,2]
[315066520,1708803042183,-500.0,0.00026879,2]
[315066521,1708803042193,-500.0,0.00026879,2]
[315066522,1708803042202,-202.46666684,0.00026879,2]
[315066523,1708803042212,-500.0,0.00026879,2]
[315066524,1708803042221,-236.43891605,0.00026879,2]
[315066525,1708803042231,-282.8782549,0.00026879,2]
[315066526,1708803042242,-530.8356858,0.00026879,2]
[315066527,1708803042252,-500.0,0.00026879,2]
[315066528,1708803042261,-628.50719756,0.00026879,2]
[315066529,1708803042270,-500.0,0.00026879,2]
[315066530,1708803042280,-423.01622667,0.00026879,2]
[315066531,1708803042289,-360.74000005,0.00026879,2]
[315066532,1708803042298,-832.88255261,0.0002688,2]
[315066533,1708803042307,-153315.40885764,0.0002688,2]
[315066534,1708803042317,-1880830.2820112,0.0002688,2]
[315066535,1708803042326,-151.0,0.0002688,3]
[315066536,1708803042342,-151.0,0.0002688,2]
[315066537,1708803042351,-151.0,0.0002688,2]
[315066538,1708803042361,-151.0,0.0002688,2]
[315066539,1708803042370,-298.487515,0.0002688,2]
[315066540,1708803042380,-151.0,0.0002688,3]
[315066541,1708803042389,-3664.144386,0.0002688,7]
[315066542,1708803042398,-3664.144386,0.0002688,7]
[315066543,1708803042408,-340.042504,0.0002688,2]
[315066544,1708803042417,-340.042504,0.0002688,2]
[315066545,1708803042427,-432.55,0.00026884,2]
[315066546,1708803042436,-150.0,0.00026887,2]
[315066547,1708803042445,-150.0,0.00026888,2]
[315066548,1708803042454,-150.0,0.0002689,2]
[315066549,1708803042464,-300.0,0.00026892,2]
[315066550,1708803042473,-150.0,0.00026896,2]
[315066551,1708803042482,-150.0,0.000269,2]
[315066552,1708803042492,-644.7326,0.000269,2]
[315066553,1708803042501,-150.0,0.000269,2]
[315066554,1708803042510,-347.0,0.000269,2]
[315066555,1708803042520,-1000.0,0.000269,2]
[315066556,1708803042529,-150.0,0.00026901,2]
[315066557,1708803042539,-150.0,0.00026908,2]
[315066558,1708803042547,-150.0,0.00026908,2]
[315066559,1708803042557,-150.0,0.00026909,2]
[315066560,1708803042566,-150.0,0.00026909,2]
[315066561,1708803042575,-150.0,0.00026911,2]
[315066562,1708803042586,-1500.0,0.00026911,2]
[315066563,1708803042595,-150.0,0.00026913,2]
[315066564,1708803042604,-300.0,0.0002692,2]
[315066565,1708803042613,-150.0,0.00026922,2]
[315066566,1708803042623,-150.0,0.00026923,2]
[315066567,1708803042632,-150.0,0.0002693,2]
[315066568,1708803042641,-150.0,0.0002693,2]
[315066569,1708803042650,-27179.6236229,0.00026931,2]
[315066570,1708803042659,-3562.233365,0.00026931,2]
[315066571,1708803042669,-4150.467009,0.00026931,2]
[315066572,1708803042678,-6225.700514,0.00026931,2]
[315066573,1708803042687,-150.0,0.00026932,2]
[315066574,1708803042697,-150.0,0.00026938,2]
[315066575,1708803042706,-150.0,0.0002694,2]
[315066576,1708803042715,-152.0,0.00026941,2]
[315066577,1708803042724,-150.0,0.00026941,2]
[315066579,1708803042741,-150.0,0.00026944,2]
[315066581,1708803042754,-150.0,0.00026945,2]